bitfinex/quotes_BTCUSD_20220204
["timestamp","ask_amount","ask_price","bid_price","bid_amount"]
[1643987928619,1.28550285,39435.0,39404.0,1.8]
[1643987928818,1.28550285,39435.0,39389.0,2.54543157]
[1643987928819,0.09984,39405.0,39401.0,0.0474065]
[1643987929019,1.11594285,39435.0,39404.0,1.94506]
[1643987929221,1.11588285,39435.0,39410.0,0.4]
[1643987929419,0.0006149,39454.0,39410.0,0.4]
[1643987929420,0.12468986,39463.0,39426.0,1.05]
[1643987929628,0.15,39440.0,39422.0,0.05]
[1643987929820,1.98424545,39460.0,39412.0,0.14506]
[1643987929821,0.02076293,39436.0,39426.0,0.09247033]
[1643987930019,0.00326,39465.0,39408.0,0.00077981]
[1643987930020,2.6559915,39469.0,39435.0,0.14506]
[1643987930338,0.1,39498.0,39480.0,0.14506]
[1643987930339,0.04273225,39483.0,39480.0,0.14506]
[1643987930527,0.0023,39499.0,39468.0,1.872]
[1643987930528,0.345682,39482.0,39471.0,0.05]
[1643987930723,0.00506803,39480.0,39472.0,2.8334369]
[1643987930926,0.0529455,39515.0,39479.0,0.14296]
[1643987931126,0.81277595,39515.0,39479.0,0.00635343]
[1643987931322,0.09128468,39517.0,39472.0,2.68948314]
[1643987931323,0.75983045,39517.0,39509.0,3.55938814]
[1643987931559,0.1,39543.0,39510.0,3.52736761]
[1643987931560,0.75983045,39518.0,39510.0,3.52736761]
[1643987931747,0.05,39528.0,39511.0,3.42736761]
[1643987931943,1.83059835,39527.0,39516.0,0.14780641]
[1643987932150,1.83059835,39527.0,39507.0,0.13438641]
[1643987932151,0.0999,39512.0,39507.0,0.13438641]
[1643987932342,0.15,39501.0,39484.0,0.4]
[1643987932544,0.15890868,39473.0,39472.0,0.04604279]
[1643987932744,0.04988,39498.0,39473.0,0.66694223]
[1643987932942,0.04988,39498.0,39473.0,0.27791687]
[1643987932943,0.14994,39498.0,39473.0,0.27791687]
[1643987933147,0.14994,39498.0,39456.0,0.45]
[1643987933148,0.14994,39524.0,39500.0,6e-05]
[1643987933446,0.14994,39524.0,39503.0,0.05]
[1643987933447,0.02912316,39524.0,39503.0,0.05]
[1643987933645,0.2,39531.0,39523.0,0.15]
[1643987933646,0.05,39531.0,39523.0,0.15]
[1643987933851,0.001,39544.0,39525.0,1.7]
[1643987933852,0.15,39544.0,39525.0,1.7]
[1643987934044,0.15,39544.0,39525.0,0.0125]
[1643987934045,0.27567314,39543.0,39525.0,0.0125]
[1643987934245,0.27567314,39543.0,39516.0,0.0625]
[1643987934246,0.0999,39526.0,39518.0,0.10049192]
[1643987934550,0.05,39521.0,39519.0,0.04173832]
[1643987934749,0.05,39521.0,39516.0,0.05]
[1643987934750,0.015,39519.0,39516.0,0.05]
[1643987934946,0.05,39544.0,39522.0,2.5586422]
[1643987935145,0.05,39544.0,39524.0,0.04947232]
[1643987935402,1.25225275,39576.0,39527.0,0.04919119]
[1643987935403,0.01824131,39565.0,39527.0,0.04919119]
[1643987935594,0.01824131,39565.0,39530.0,0.15]
[1643987935898,0.01824131,39565.0,39528.0,1.48011552]
[1643987935899,0.00158035,39531.0,39527.0,0.05536162]
[1643987936098,0.001,39550.0,39529.0,0.09410427]
[1643987936099,0.151,39550.0,39529.0,0.09410427]
[1643987936293,0.151,39550.0,39507.0,0.15]
[1643987936294,0.00158035,39530.0,39507.0,0.15]
[1643987936494,0.00158035,39530.0,39500.0,0.00108]
[1643987936495,0.00579223,39511.0,39506.0,0.05]
[1643987936697,0.00579223,39511.0,39487.0,0.65189261]
[1643987936698,0.00158035,39507.0,39488.0,0.5]
[1643987936895,0.01974179,39523.0,39489.0,0.05]
[1643987936896,0.00542599,39501.0,39489.0,0.05]
[1643987937092,0.2,39521.0,39489.0,0.05]
[1643987937093,0.05,39515.0,39489.0,0.05]
[1643987937301,0.04852035,39521.0,39500.0,0.00012]
[1643987937498,0.04852035,39516.0,39515.0,0.15]
[1643987937701,0.01974179,39523.0,39501.0,0.0432]
[1643987937702,0.04852035,39522.0,39509.0,0.05]
[1643987937900,0.04852035,39522.0,39483.0,0.15]
[1643987937901,0.35451156,39499.0,39483.0,0.15]
[1643987938094,0.0810974,39492.0,39490.0,0.04231516]
[1643987938304,0.0810974,39492.0,39474.0,0.05]
[1643987938305,0.3392634,39492.0,39479.0,0.15]
[1643987938497,0.3392634,39492.0,39465.0,0.5]
[1643987938498,0.14994,39481.0,39480.0,0.75977]
[1643987938798,0.14994,39481.0,39466.0,0.08726]
[1643987938799,0.06274,39481.0,39466.0,0.08726]
[1643987939069,0.37218375,39465.0,39436.0,0.03315016]
[1643987939269,1.68188,39480.0,39471.0,0.54040637]
[1643987939270,0.147,39474.0,39471.0,0.54040637]
[1643987939470,0.147,39474.0,39440.0,4.37124601]
[1643987939471,0.05,39472.0,39440.0,4.37124601]
[1643987939669,0.14988,39467.0,39441.0,0.695]
[1643987939874,0.05,39476.0,39442.0,0.04383112]
[1643987940070,0.19678857,39454.0,39451.0,0.15]
[1643987940274,0.34321965,39466.0,39451.0,0.15]
[1643987940471,3e-06,39465.0,39451.0,0.14518]
[1643987940772,0.05,39474.0,39461.0,0.05]
[1643987940970,0.05,39474.0,39441.0,0.03905898]
[1643987940971,0.04988,39474.0,39446.0,0.04855433]
[1643987941169,0.04988,39474.0,39428.0,3.29801912]
[1643987941170,0.09881153,39467.0,39464.0,0.145237]
[1643987941371,0.09881153,39467.0,39448.0,0.05]
[1643987941372,4.3285248,39490.0,39465.0,0.145237]
[1643987941571,4.3285248,39490.0,39480.0,0.05]
[1643987941572,4.3283448,39490.0,39480.0,0.05]
[1643987941772,0.3616849,39474.0,39468.0,0.19328974]
[1643987942076,0.3613249,39474.0,39471.0,0.05788448]
[1643987942274,0.3613249,39474.0,39451.0,0.09888855]
[1643987942275,0.05111145,39459.0,39451.0,0.09888855]
[1643987942479,0.08499028,39463.0,39422.0,0.4]
[1643987942480,0.05,39454.0,39422.0,0.4]
[1643987942669,0.04308,39453.0,39425.0,0.30506]
[1643987942908,0.15,39444.0,39428.0,1.4]
[1643987943109,0.14876325,39442.0,39425.0,0.30506]
[1643987943314,0.00542379,39465.0,39424.0,1.8]
[1643987943315,0.33931999,39458.0,39424.0,1.8]
[1643987943506,0.00542379,39465.0,39423.0,0.76069]
[1643987943507,0.15679829,39438.0,39432.0,0.05]
[1643987943709,0.15679829,39438.0,39419.0,0.71661211]
[1643987943710,0.16620177,39440.0,39439.0,0.00064513]
[1643987943913,0.16620177,39440.0,39424.0,0.00622244]
[1643987943914,0.09271784,39428.0,39422.0,0.05]
[1643987944106,0.09271784,39428.0,39407.0,0.05]
[1643987944107,0.09870325,39421.0,39407.0,0.05]
[1643987944311,0.09870325,39421.0,39399.0,0.05129675]
[1643987944312,0.14577498,39400.0,39399.0,0.05129675]
[1643987944508,0.04314,39400.0,39399.0,0.76143]
[1643987944712,0.0203181,39425.0,39399.0,0.85610657]
[1643987944713,0.14988,39407.0,39399.0,0.85610657]
[1643987944911,0.14982,39423.0,39414.0,0.04467657]
[1643987945113,0.0201981,39425.0,39406.0,0.38623169]
[1643987945114,0.25741,39422.0,39406.0,0.38623169]
[1643987945317,0.0200781,39425.0,39414.0,0.04467657]
[1643987945318,0.14976,39420.0,39414.0,0.04467657]
[1643987945511,0.14964,39415.0,39404.0,0.05]
[1643987945713,0.0200781,39425.0,39404.0,0.05]
[1643987945911,0.1494,39407.0,39396.0,0.04743814]
[1643987946111,0.08980573,39424.0,39404.0,0.05]
[1643987946112,0.255941,39406.0,39404.0,0.05]
[1643987946310,0.09946,39416.0,39404.0,1.8506]
[1643987946311,0.0496,39412.0,39404.0,1.8506]
[1643987946559,0.0496,39412.0,39398.0,0.39365192]
[1643987946560,0.36606265,39415.0,39414.0,0.0506]
[1643987946760,0.255696,39415.0,39414.0,0.0506]
[1643987946959,0.0994,39416.0,39414.0,0.0506]
[1643987946960,0.18648206,39416.0,39414.0,0.0506]
[1643987947261,0.05,39415.0,39399.0,0.14446761]
[1643987947458,0.04976,39420.0,39413.0,8.35e-06]
[1643987947459,0.09972,39416.0,39413.0,8.35e-06]
[1643987947665,0.09972,39416.0,39366.0,0.01]
[1643987947666,0.30972961,39404.0,39401.0,0.00012]
[1643987947861,0.14988,39400.0,39379.0,0.00682481]
[1643987948059,0.04982,39402.0,39393.0,0.00024]
[1643987948060,0.04308,39399.0,39393.0,0.00024]
[1643987948261,0.15615255,39402.0,39378.0,0.05]
[1643987948262,0.04308,39398.0,39378.0,0.05]
[1643987948459,0.14982,39401.0,39393.0,0.00024]
[1643987948661,1.8,39424.0,39371.0,0.05]
[1643987948662,0.05,39423.0,39401.0,1.8]
[1643987948860,0.03890663,39432.0,39401.0,1.8]
[1643987948861,0.05,39427.0,39422.0,0.05]
[1643987949161,0.09946,39443.0,39420.0,0.46835388]
[1643987949162,0.005,39456.0,39441.0,0.05066]
[1643987949360,0.05,39482.0,39441.0,0.05066]
[1643987949361,0.01994,39480.0,39458.0,0.15]
[1643987949570,0.01988,39466.0,39462.0,0.03012]
[1643987949758,0.01988,39466.0,39452.0,0.0432]
[1643987949759,0.00104,39489.0,39475.0,0.35040018]
[1643987949960,0.15304746,39481.0,39475.0,0.35040018]
[1643987950169,0.04988,39483.0,39480.0,0.0253]
[1643987950407,0.09979621,39506.0,39486.0,0.08386793]
[1643987950408,0.05,39488.0,39486.0,0.08386793]
[1643987950604,0.00194,39493.0,39487.0,0.06856]
[1643987950605,0.00188,39493.0,39487.0,0.06856]
[1643987950805,0.10482607,39513.0,39500.0,6e-05]
[1643987950806,0.05,39505.0,39500.0,6e-05]
[1643987951003,0.05,39505.0,39488.0,0.0432]
[1643987951004,0.00012,39500.0,39488.0,0.0432]
[1643987951205,0.00012,39500.0,39460.0,0.09620734]
[1643987951206,0.02452,39489.0,39460.0,0.09620734]
[1643987951427,0.10485501,39500.0,39461.0,0.80318]
[1643987951604,0.0022349,39527.0,39500.0,0.00012]
[1643987951805,0.0022349,39527.0,39500.0,0.00024]
[1643987951806,0.04117023,39526.0,39500.0,0.00024]
[1643987952005,0.04734,39501.0,39500.0,0.00048]
[1643987952201,0.047,39505.0,39500.0,0.00048]
[1643987952202,0.15648808,39502.0,39500.0,0.00072]
[1643987952402,0.15648808,39502.0,39500.0,0.00096]
[1643987952403,1.42991789,39501.0,39500.0,0.00096]
[1643987952601,1.42991789,39501.0,39500.0,0.00114]
[1643987952602,0.32991789,39501.0,39500.0,0.00114]
[1643987952804,1.8,39501.0,39482.0,0.05]
[1643987953002,1.8,39501.0,39500.0,0.00024]
[1643987953003,0.15289056,39501.0,39500.0,0.00024]
[1643987953204,0.001,39511.0,39500.0,0.00048]
[1643987953405,0.001,39511.0,39502.0,0.05]
[1643987953406,0.00074946,39508.0,39502.0,0.05]
[1643987953603,0.00074946,39508.0,39507.0,0.00637773]
[1643987953802,0.00074946,39508.0,39506.0,0.05]
[1643987954049,0.43199584,39524.0,39503.0,0.42463924]
[1643987954050,0.0999,39521.0,39507.0,0.00125054]
[1643987954246,0.0011,39528.0,39507.0,0.00125054]
[1643987954247,0.04574946,39527.0,39520.0,0.00425054]
[1643987954449,0.04574946,39525.0,39516.0,0.00425054]
[1643987954647,0.04274946,39521.0,39516.0,0.01230731]
[1643987954843,0.045,39524.0,39507.0,0.75936]
[1643987954844,0.35297027,39513.0,39507.0,0.75936]
[1643987955044,0.35297027,39513.0,39500.0,0.00276]
[1643987955045,0.04274946,39508.0,39500.0,0.00276]
[1643987955246,0.04274946,39508.0,39490.0,0.00725054]
[1643987955247,1.5,39500.0,39490.0,0.003]
[1643987955449,1.94677854,39491.0,39471.0,0.2213321]
[1643987955646,0.44419509,39510.0,39471.0,0.2213321]
[1643987955647,0.17793787,39479.0,39473.0,1.8]
[1643987955845,0.17793787,39479.0,39471.0,0.29326]
[1643987955846,0.04682,39474.0,39471.0,0.29326]
[1643987956043,0.07422814,39473.0,39471.0,0.29326]
[1643987956344,0.08978,39472.0,39419.0,0.4638]
[1643987956542,0.08978,39472.0,39416.0,1.01661211]
[1643987956543,0.04658,39449.0,39436.0,0.0077769]
[1643987956744,0.14648,39463.0,39437.0,0.00681315]
[1643987956944,0.04358,39451.0,39442.0,0.15]
[1643987957142,0.04058,39463.0,39450.0,0.00642]
[1643987957345,0.0969,39472.0,39458.0,0.05]
[1643987957346,0.1469,39472.0,39458.0,0.05]
[1643987957545,0.05,39484.0,39458.0,0.05]
[1643987957793,0.18071817,39474.0,39456.0,0.12666086]
[1643987957992,0.18071817,39474.0,39456.0,0.05]
[1643987957993,0.17771817,39474.0,39456.0,0.05]
[1643987958191,0.047,39475.0,39458.0,0.05]
[1643987958390,0.043386,39475.0,39458.0,0.05]
[1643987958590,0.33157494,39466.0,39451.0,0.80942]
[1643987958791,0.0939,39480.0,39446.0,4.41387965]
[1643987958792,0.0425608,39473.0,39446.0,4.33387965]
[1643987958993,0.0425608,39473.0,39434.0,0.05]
[1643987958994,0.05,39467.0,39434.0,0.05]
[1643987959190,0.03348068,39465.0,39418.0,0.15]
[1643987959393,0.07627899,39464.0,39449.0,0.00094123]
[1643987959590,0.05,39467.0,39432.0,0.05643428]
[1643987959591,0.0282,39463.0,39432.0,0.05643428]
[1643987959793,0.0282,39463.0,39402.0,0.03582427]
[1643987959794,0.05,39433.0,39418.0,0.01844494]
[1643987959996,0.05,39424.0,39419.0,0.76093]
[1643987960197,0.32487658,39450.0,39419.0,0.76093]
[1643987960198,0.0432,39423.0,39419.0,0.76093]
[1643987960392,0.00794852,39450.0,39418.0,0.01844494]
[1643987960393,0.05,39424.0,39418.0,0.01844494]
[1643987960595,0.04994,39419.0,39415.0,0.0125]
[1643987960797,0.04994,39419.0,39392.0,0.14049049]
[1643987960798,0.36608613,39409.0,39392.0,0.14061049]
[1643987960995,0.05,39415.0,39392.0,0.14061049]
[1643987960996,0.0432,39408.0,39393.0,0.32487658]
[1643987961193,0.10478012,39407.0,39406.0,0.00012]
[1643987961395,0.05,39409.0,39406.0,0.00012]
[1643987961657,0.05,39409.0,39408.0,0.00012]
[1643987961855,0.05,39409.0,39393.0,0.04512]
[1643987962056,0.05,39409.0,39390.0,0.5]
[1643987962057,0.05,39409.0,39394.0,1.08627658]
[1643987962256,0.05,39409.0,39396.0,0.39142018]
[1643987962257,0.17399679,39403.0,39396.0,0.39142018]
[1643987962455,0.05,39409.0,39397.0,0.345635]
[1643987962660,0.05,39409.0,39398.0,0.32487658]
[1643987962959,0.04994,39420.0,39400.0,1.8]
[1643987963162,0.04994,39420.0,39396.0,0.39142018]
[1643987963163,0.04988,39420.0,39418.0,0.01844494]
[1643987963363,0.14337636,39411.0,39397.0,0.32487658]
[1643987963559,0.14337636,39411.0,39391.0,0.5]
[1643987963560,0.05,39407.0,39400.0,0.00016229]
[1643987963759,0.0432,39412.0,39406.0,1.25]
[1643987963957,0.06844494,39419.0,39407.0,0.00016229]
[1643987963958,0.03678776,39418.0,39407.0,0.00016229]
[1643987964160,0.0432,39425.0,39424.0,1.92155506]
[1643987964463,0.0432,39425.0,39407.0,0.00093947]
[1643987964464,0.33467919,39410.0,39407.0,0.00093947]
[1643987964659,0.04983771,39408.0,39407.0,0.00093947]
[1643987964859,0.09225176,39408.0,39407.0,0.00093947]
[1643987965059,0.04213393,39409.0,39407.0,0.00093947]
[1643987965309,0.14414237,39408.0,39401.0,0.7614]
[1643987965502,0.42,39426.0,39392.0,0.32487658]
[1643987965503,1.8,39401.0,39392.0,0.32487658]
[1643987965707,0.04886733,39393.0,39374.0,0.71661211]
[1643987965902,0.08093991,39392.0,39374.0,0.71661211]
[1643987966100,0.08093991,39392.0,39374.0,0.7165644]
[1643987966101,0.0432,39391.0,39374.0,0.7165644]
[1643987966302,0.13940009,39389.0,39374.0,0.7015644]
[1643987966508,0.09670676,39381.0,39374.0,0.6965644]
[1643987966704,0.09670676,39381.0,39366.0,0.15051546]
[1643987966705,0.28623309,39372.0,39366.0,0.15051546]
[1643987966904,0.75,39375.0,39366.0,0.01]
[1643987966905,0.05,39371.0,39366.0,0.01]
[1643987967102,0.05,39384.0,39361.0,0.32487658]
[1643987967300,0.44616656,39420.0,39383.0,0.0034]
[1643987967301,0.0996493,39397.0,39383.0,0.0034]
[1643987967509,0.09118772,39396.0,39393.0,0.00665527]
[1643987967702,0.03034239,39397.0,39395.0,0.0034]
[1643987967900,0.05,39399.0,39393.0,0.00325527]
[1643987968102,0.05,39399.0,39383.0,0.0034]
[1643987968103,0.0466,39394.0,39383.0,0.0034]
[1643987968306,0.0466,39394.0,39364.0,0.01]
[1643987968307,0.0466,39391.0,39366.0,0.0034]
[1643987968504,0.05,39385.0,39367.0,0.0035]
[1643987968703,0.01909811,39393.0,39362.0,0.32487658]
[1643987968704,0.32487658,39396.0,39366.0,0.0035]
[1643987968900,0.05,39384.0,39366.0,0.04512]
[1643987969150,0.03439744,39395.0,39370.0,0.00657776]
[1643987969151,0.01560256,39395.0,39370.0,0.00657776]
[1643987969359,0.00093582,39402.0,39374.0,0.05]
[1643987969551,0.0432,39413.0,39400.0,1.8]
[1643987969754,0.1439,39424.0,39401.0,0.37051158]
[1643987969949,0.14378,39424.0,39402.0,0.36623129]
[1643987970150,0.14378,39424.0,39401.0,0.26536441]
[1643987970151,0.14366,39424.0,39403.0,0.32487658]
[1643987970352,0.05,39422.0,39403.0,0.32487658]
[1643987970549,0.001,39423.0,39401.0,0.32487658]
[1643987970751,0.001,39423.0,39402.0,0.76119]
[1643987970956,0.001,39423.0,39403.0,0.32487658]
[1643987971150,0.05,39416.0,39403.0,0.32487658]
[1643987971352,0.05,39416.0,39403.0,0.67051158]
[1643987971555,0.05,39416.0,39409.0,0.08329943]
[1643987971751,0.001,39423.0,39415.0,0.42603289]
[1643987971953,0.04491383,39435.0,39415.0,0.42603289]
[1643987971954,0.03522314,39437.0,39417.0,1.8]
[1643987972254,0.0021,39448.0,39418.0,0.37407931]
[1643987972255,0.0011,39430.0,39418.0,0.37407931]
[1643987972454,0.0001,39430.0,39419.0,0.76622574]
[1643987972660,0.0001,39430.0,39420.0,0.0432]
[1643987972661,0.1499,39427.0,39420.0,0.0432]
[1643987972903,0.1499,39427.0,39421.0,0.345635]
[1643987973104,0.1,39439.0,39421.0,0.345635]
[1643987973105,0.13491057,39444.0,39422.0,1.8]
[1643987973307,0.001,39450.0,39423.0,0.36807658]
[1643987973308,0.05,39445.0,39423.0,0.36807658]
[1643987973509,0.05,39445.0,39435.0,0.38762412]
[1643987973703,0.05,39445.0,39436.0,0.0432]
[1643987973704,0.0999,39437.0,39436.0,0.0432]
[1643987974004,0.0999,39437.0,39426.0,0.346208]
[1643987974204,0.29045474,39437.0,39427.0,1.12897658]
[1643987974505,0.19739345,39429.0,39428.0,0.67108458]
[1643987974704,0.19739345,39429.0,39428.0,0.0432]
[1643987974904,0.0999,39429.0,39428.0,0.389408]
[1643987975104,0.1499,39429.0,39428.0,0.346308]
[1643987975309,0.49247175,39429.0,39427.0,0.1772]
[1643987975506,0.49247175,39429.0,39402.0,0.04599189]
[1643987975507,0.27683591,39407.0,39402.0,0.04599189]
[1643987975708,1.8,39426.0,39391.0,0.7177415]
[1643987975709,0.38167086,39400.0,39391.0,0.7177415]
[1643987975906,0.38167086,39400.0,39376.0,4.25062068]
[1643987975907,0.0497,39392.0,39377.0,0.02886678]
[1643987976109,0.0497,39392.0,39376.0,4.25062068]
[1643987976110,0.0497,39382.0,39379.0,0.346208]
[1643987976309,0.0932,39393.0,39376.0,4.24932068]
[1643987976310,0.0497,39380.0,39376.0,4.24932068]
[1643987976542,0.05,39383.0,39378.0,0.34401392]
[1643987976743,0.05,39383.0,39379.0,0.346208]
[1643987976953,0.05,39392.0,39379.0,0.250208]
[1643987976954,0.05,39388.0,39379.0,0.250208]
[1643987977145,0.05,39388.0,39376.0,4.24932068]
[1643987977146,0.05,39384.0,39377.0,0.05]
[1643987977345,0.05,39384.0,39382.0,0.00093748]
[1643987977643,0.0201,39386.0,39382.0,0.00093748]
[1643987978143,0.0201,39386.0,39377.0,0.05]
[1643987978144,0.06262473,39386.0,39375.0,0.05]
[1643987978344,0.0027916,39376.0,39361.0,0.0472084]
[1643987978560,0.0027916,39376.0,39355.0,1.29528]
[1643987978561,0.0201,39370.0,39362.0,1.108642]
[1643987978750,0.05,39375.0,39362.0,1.108642]
[1643987978751,0.0432,39375.0,39363.0,0.0472084]
[1643987978949,0.05,39373.0,39371.0,0.45686389]
[1643987979147,0.05,39373.0,39372.0,0.346612]
[1643987979348,0.0027916,39377.0,39373.0,0.346612]
[1643987979553,0.05,39394.0,39374.0,1.17487658]
[1643987979554,0.05,39385.0,39374.0,1.17487658]
[1643987979750,0.04799639,39412.0,39384.0,0.05]
[1643987979948,0.005,39392.0,39382.0,0.045]
[1643987980147,0.005,39392.0,39383.0,0.346686]
[1643987980400,0.05,39393.0,39384.0,0.346686]
[1643987980601,0.001,39411.0,39378.0,0.32487658]
[1643987980602,0.005,39385.0,39378.0,0.32487658]
[1643987980802,0.144033,39392.0,39379.0,0.76183]
[1643987980803,0.005,39382.0,39379.0,0.76183]
[1643987980999,0.0432,39396.0,39380.0,0.67156258]
[1643987981000,0.05,39391.0,39380.0,0.67156258]
[1643987981198,0.0432,39396.0,39379.0,0.2666609]
[1643987981199,0.005,39381.0,39379.0,0.2666609]
[1643987981407,0.005,39381.0,39369.0,0.045]
[1643987981408,0.05,39378.0,39363.0,0.01]
[1643987981604,0.05,39378.0,39369.0,0.00063501]
[1643987981605,0.42607019,39378.0,39369.0,0.00063501]
[1643987981799,0.149114,39377.0,39369.0,0.00063501]
[1643987981999,0.05,39375.0,39369.0,0.02104003]
[1643987982200,0.005,39373.0,39371.0,0.00093413]
[1643987982401,0.9,39371.0,39364.0,0.00373718]
[1643987982604,0.005,39365.0,39364.0,0.00373718]
[1643987983003,0.03891909,39364.0,39354.0,0.00973718]
[1643987983205,0.03891909,39364.0,39340.0,0.05]
[1643987983206,0.05,39355.0,39335.0,0.48709749]
[1643987983406,0.005,39361.0,39336.0,1.19833006]
[1643987983605,0.02040502,39370.0,39345.0,1.0]
[1643987983808,0.0207404,39393.0,39368.0,0.35620671]
[1643987983809,0.08317523,39387.0,39368.0,0.35620671]
[1643987984089,0.08317523,39387.0,39347.0,1.8]
[1643987984090,0.00042028,39370.0,39369.0,0.6918986]
[1643987984274,0.00042028,39370.0,39369.0,0.36702202]
[1643987984473,0.00042028,39370.0,39369.0,0.36492614]
[1643987984676,0.00042028,39370.0,39369.0,0.02040502]
[1643987984971,0.32487658,39385.0,39369.0,0.02040502]
[1643987984972,0.32309464,39372.0,39369.0,0.02040502]
[1643987985175,0.47,39372.0,39369.0,0.02040502]
[1643987985373,0.42,39372.0,39348.0,0.59717021]
[1643987985574,0.05,39355.0,39347.0,1.8]
[1643987985774,0.00030024,39366.0,39348.0,2.146711]
[1643987985973,0.05,39364.0,39351.0,0.05]
[1643987986174,0.00030024,39366.0,39363.0,0.05]
[1643987986371,0.00030024,39366.0,39352.0,0.67158758]
[1643987986372,0.01570526,39370.0,39366.0,0.326711]
[1643987986576,0.01570526,39370.0,39352.0,0.00561747]
[1643987986577,0.17989466,39368.0,39355.0,0.32487658]
[1643987986772,0.17989466,39368.0,39367.0,0.11273012]
[1643987986773,0.36096253,39368.0,39367.0,0.11273012]
[1643987986974,0.0720037,39372.0,39367.0,0.36674012]
[1643987987175,0.0720037,39372.0,39354.0,0.42245658]
[1643987987176,0.95209,39367.0,39354.0,0.42245658]
[1643987987377,0.05,39359.0,39355.0,0.35171]
[1643987987675,0.05,39359.0,39340.0,1.793]
[1643987987676,0.03549977,39357.0,39340.0,1.793]
[1643987987897,0.199031,39356.0,39346.0,0.01891065]
[1643987988095,0.05,39359.0,39346.0,0.01891065]
[1643987988297,0.05,39359.0,39347.0,0.05]
[1643987988298,0.0456072,39357.0,39347.0,0.05]
[1643987988498,0.05,39359.0,39347.0,0.05]
[1643987988703,0.05,39359.0,39348.0,0.25331]
[1643987988904,0.05,39359.0,39349.0,0.346724]
[1643987989103,0.03659221,39369.0,39358.0,0.05]
[1643987989315,0.05,39368.0,39364.0,0.05]
[1643987989509,0.32487658,39379.0,39347.0,0.16343051]
[1643987989510,0.04792983,39386.0,39367.0,0.05]
[1643987989702,0.00075,39376.0,39369.0,0.04925]
[1643987989901,0.02174483,39370.0,39369.0,0.346724]
[1643987990204,0.02174483,39370.0,39364.0,0.04349]
[1643987990205,0.00075,39370.0,39364.0,0.09234]
[1643987990400,0.00075,39368.0,39364.0,0.09234]
[1643987990601,0.00075,39368.0,39367.0,1.29309]
[1643987990801,0.00075,39368.0,39367.0,0.346724]
[1643987991002,0.00075,39368.0,39363.0,0.00063103]
[1643987991202,0.00075,39364.0,39363.0,0.00063103]
[1643987991649,0.34476808,39363.0,39354.0,0.00839828]
[1643987991845,0.00075,39361.0,39354.0,0.10286293]
[1643987992045,0.01,39355.0,39354.0,0.01092293]
[1643987992248,0.15707671,39355.0,39354.0,0.01052293]
[1643987992442,1.00782671,39355.0,39354.0,0.01012293]
[1643987992645,1.00782671,39355.0,39336.0,0.04269]
[1643987992646,0.8,39354.0,39336.0,0.04269]
[1643987992847,0.8,39354.0,39337.0,0.20081]
[1643987992848,0.3685319,39349.0,39337.0,0.20081]
[1643987993046,0.05,39346.0,39337.0,0.20081]
[1643987993245,0.31901998,39343.0,39337.0,0.11231]
[1643987993446,0.19165756,39341.0,39337.0,0.11231]
[1643987993643,0.19165756,39341.0,39335.0,0.04269]
[1643987993644,0.34052604,39337.0,39335.0,0.04269]
[1643987993848,0.05,39346.0,39326.0,0.04269]
[1643987994050,0.05,39346.0,39337.0,0.04269]
[1643987994645,0.05,39346.0,39327.0,0.44838766]
[1643987994845,0.09353118,39342.0,39327.0,0.25427]
[1643987995043,0.0217644,39352.0,39331.0,0.05]
[1643987995044,0.32487658,39350.0,39331.0,0.05]
[1643987995308,0.32487658,39350.0,39324.0,0.14647]
[1643987995309,0.05,39345.0,39328.0,1.8]
[1643987995511,0.05,39368.0,39328.0,1.8]
[1643987995512,0.00302886,39366.0,39351.0,0.0217644]
[1643987995705,0.0999,39370.0,39363.0,0.18339803]
[1643987995905,0.001,39364.0,39354.0,0.32487658]
[1643987996111,0.35559775,39364.0,39353.0,1.03278798]
[1643987996304,0.001,39364.0,39354.0,0.346921]
[1643987996505,0.001,39364.0,39353.0,1.35766456]
[1643987996506,0.001,39364.0,39361.0,0.05]
[1643987996705,0.001,39364.0,39363.0,1.146921]
[1643987996910,0.01922242,39376.0,39363.0,1.146921]
[1643987996911,0.01922242,39376.0,39363.0,0.396921]
[1643987997106,0.10132855,39374.0,39364.0,0.53155327]
[1643987997306,0.01922242,39376.0,39364.0,0.20667669]
[1643987997307,0.30906783,39365.0,39364.0,0.20667669]
[1643987997507,0.10376217,39373.0,39356.0,0.346921]
[1643987997707,0.01922242,39376.0,39353.0,1.03278798]
[1643987997708,0.01922242,39376.0,39361.0,0.05]
[1643987997907,0.0189709,39370.0,39363.0,0.05]
[1643987998306,0.08168659,39366.0,39354.0,0.32487658]
[1643987998511,0.08168659,39366.0,39350.0,0.67885784]
[1643987998512,0.36532436,39366.0,39350.0,0.67885784]
[1643987998707,0.36132959,39360.0,39350.0,0.67885784]
[1643987998906,0.0189709,39370.0,39358.0,0.05]
[1643987999148,0.0189709,39370.0,39351.0,0.32487658]
[1643987999348,0.0189709,39370.0,39369.0,0.00137142]
[1643987999846,0.0189709,39370.0,39351.0,0.32487658]
[1643988000050,0.0189709,39370.0,39328.0,2.02250838]
[1643988000051,0.18089192,39341.0,39330.0,0.04]
[1643988000259,0.01,39338.0,39331.0,0.76267]
[1643988000449,0.01,39336.0,39332.0,0.346921]
[1643988000649,0.0432,39360.0,39323.0,0.39915592]
[1643988000650,0.01,39333.0,39323.0,0.39915592]
[1643988000852,0.06,39351.0,39316.0,0.04]
[1643988000853,0.01,39327.0,39317.0,0.21006316]
[1643988001053,0.01,39327.0,39316.0,0.04]
[1643988001054,0.01,39320.0,39316.0,0.04]
[1643988001252,0.00676294,39346.0,39316.0,0.04]
[1643988001253,0.09893268,39336.0,39317.0,0.76301]
[1643988001450,0.005,39320.0,39317.0,0.76301]
[1643988001652,0.005,39320.0,39318.0,0.7940217]